Cogmind - Beta 15 @@@ ROGUE MODE // 2025.08.12 @ 10:58:33 Player: C0-2MO Result: Destroyed by S-27 Virus with Autogun Performance ------------- Evolutions (6) 3000 Regions Visited (20) 4000 Robots Destroyed (72) 360 Value Destroyed (1716) 1716 Prototype IDs (42) 840 Alien Tech Used (0) 0 Bonus (4953) 4953 TOTAL SCORE: 14869 Bonus ------- High Alert Combat Kills 49 Follower Combat Kills 2204 Entered Garrisons 200 Network Hubs Disabled 600 Registered with UFD 300 Met Optimus in HQ 500 Met Data Miner 300 Built Enhanced Grunts 300 Met R17 at Cetus 500 Cogmind --------- Core Integrity 0/1150 Matter 206/300 Energy 100/100 System Corruption 1% Temperature Cool (0) Movement Core (200) Ox3 Location -4/Factory Parts ------- > --- POWER (2) -------- Improved Fusion Compressor > --- PROPULSION (8) --- (None) > --- UTILITY (7) ------ Advanced Signal Interpreter Surveybot 17 Chip Improved Focal Shield Advanced Hacking Suite System Shield > --- WEAPON (2) ------- Power Maul > --- INVENTORY (5) ---- Micro Antimatter Reactor Advanced Cooling System Deep Structural Scanner Peak State ------------ > --- POWER ------------ Compact Particle Reactor > --- PROPULSION ------- Field Propulsion Drive Field Propulsion Drive Field Propulsion Drive Cooled Nuclear Pulse Thruster Cooled Nuclear Pulse Thruster Nuclear Pulse Array > --- UTILITY ---------- Medium Storage Unit Improved Signal Interpreter Surveybot 17 Chip Centrium Medium Armor Plating Advanced Hacking Suite Advanced System Shield Advanced System Restoration Module > --- WEAPON ----------- Improved Remote Datajack Heavy Pick > --- INVENTORY -------- Micro Fission Core Field Propulsion Drive Advanced Gravity Neutralizer Deep Structural Scanner Improved Terrain Scanner Stasis Canceller Medium Regenerative Plating Power Maul Botcube [Rating: 107] Favorites ----------- Power Ion Engine Engine Ion Engine Power Core Light Fission Core Reactor Compact Particle Reactor Propulsion Wheel Treads Light Treads Leg Flexi-carbon Leg Wheel Wheel Hover Unit Gravmag Array Flight Unit Field Propulsion Drive Utility Medium Storage Unit Device Improved Sensor Array Storage Medium Storage Unit Processor Surveybot 17 Chip Hackware Advanced System Shield Protection Improved Propulsion Shielding Weapon Greatsword Energy Gun EM Pulse Gun Energy Cannon HERF Cannon Ballistic Gun Subdweller Machine Gun Ballistic Cannon Battle Cannon Special Weapon Improved Remote Datajack Impact Weapon Power Maul Slashing Weapon Greatsword Piercing Weapon Heavy Pick Build | -11 -10 -10 -8 -6 -6 -6 -6 -6 -6 -5 -5 -5 -5 -5 -5 -5 -5 -4 -4 -4 ------- Run | Yrd Mat Sub Scr Fac Was Fac Low Low Dat Pro Fac Was Fac Ext Cet Arc Hub Fac Gar Fac Slots Evolved 12 | . . . . 8 . . . . . . 2 . . . . . . 2 . . Power 1 | . . . . . . . . . . . . . . . . . . 1 . . Propulsion 6 | . . . . 4 . . . . . . 1 . . . . . . 1 . . Utility 5 | . . . . 4 . . . . . . 1 . . . . . . . . . Weapon . | . . . . . . . . . . . . . . . . . . . . . Parts Attached 148 | 7 1 11 2 23 . 15 . 1 . . 16 . 41 3 9 3 5 2 3 6 Power 15 | 1 . . . 4 . 1 . . . . 1 . 2 2 1 . . . 2 1 Engine 5 | 1 . . . 2 . . . . . . 1 . . . . . . . 1 . Core 8 | . . . . 2 . 1 . . . . . . 2 2 . . . . . 1 Reactor 2 | . . . . . . . . . . . . . . . 1 . . . 1 . Propulsion 58 | 3 . 7 . 9 . 8 . . . . 5 . 16 1 . 2 4 1 1 1 Treads 3 | 2 . 1 . . . . . . . . . . . . . . . . . . Leg 1 | . . . . . . . . . . . . . . . . . . . . 1 Wheel 7 | 1 . 6 . . . . . . . . . . . . . . . . . . Hover 3 | . . . . . . 1 . . . . 1 . . . . 1 . . . . Flight 44 | . . . . 9 . 7 . . . . 4 . 16 1 . 1 4 1 1 . Utility 61 | 1 1 2 . 9 . 6 . 1 . . 10 . 20 . 6 . 1 1 . 3 Device 29 | 1 . 1 . 3 . 4 . 1 . . 3 . 12 . 2 . . 1 . 1 Storage 6 | . 1 1 . 1 . . . . . . 1 . 1 . 1 . . . . . Processor 8 | . . . . 2 . 1 . . . . 3 . 1 . . . . . . 1 Hackware 15 | . . . . 2 . 1 . . . . 3 . 6 . 1 . 1 . . 1 Protection 3 | . . . . 1 . . . . . . . . . . 2 . . . . . Artifact . | . . . . . . . . . . . . . . . . . . . . . Weapon 14 | 2 . 2 2 1 . . . . . . . . 3 . 2 1 . . . 1 Energy Gun 2 | 1 . . 1 . . . . . . . . . . . . . . . . . Energy Cannon 1 | . . . . . . . . . . . . . . . . . . . . 1 Ballistic Gun 2 | 1 . 1 . . . . . . . . . . . . . . . . . . Ballistic Cannon 3 | . . 1 . 1 . . . . . . . . . . . 1 . . . . Launcher . | . . . . . . . . . . . . . . . . . . . . . Special Weapon 2 | . . . . . . . . . . . . . 1 . 1 . . . . . Impact Weapon 1 | . . . . . . . . . . . . . . . 1 . . . . . Slashing Weapon 1 | . . . 1 . . . . . . . . . . . . . . . . . Piercing Weapon 2 | . . . . . . . . . . . . . 2 . . . . . . . Special Melee Weapon . | . . . . . . . . . . . . . . . . . . . . . Unidentified Prototypes 11 | . . . . 2 . 1 . . . . 1 . 1 . 5 . 1 . . . Parts Lost 68 | . . 4 . 11 . 3 1 . . 5 3 . 15 3 . . 7 2 12 2 Power 6 | . . . . 1 . . . . . . 1 . 1 1 . . . 1 1 . Propulsion 37 | . . 3 . 6 . 3 . . . 3 1 . 7 1 . . 5 1 6 1 Utility 23 | . . 1 . 4 . . 1 . . 2 1 . 6 1 . . 2 . 5 . Weapon 2 | . . . . . . . . . . . . . 1 . . . . . . 1 Highest Loss Streak 10 | . . 2 . 4 . 3 1 . . 5 2 . 9 3 . . 2 2 10 2 To Critical Strikes 2 | . . . . . . . . . . . . . . 1 . . . . . 1 Average Backups 12 | 3 8 17 16 8 8 7 8 8 9 8 8 9 8 7 7 8 9 8 6 5 Power 1 | . 1 1 . . 1 . 1 1 1 1 . 1 1 1 1 2 2 2 . 1 Propulsion 3 | 1 7 8 5 . . . 1 1 1 . . . . 1 1 1 1 . . . Utility 4 | . . 3 5 5 4 3 4 4 5 4 5 6 3 3 4 4 3 4 3 2 Weapon 2 | . . 4 3 . 1 . . . . . . . . 1 1 1 1 1 1 2 Tool/Special . | . . . . . . . . . . . . . . . . . . . . . Unused Backups 29 | . 1 3 2 4 . 1 . . . . 2 . 2 . 8 1 4 . . 1 Power 2 | . . . . . . . . . . . . . . . 1 . 1 . . . Propulsion 5 | . . 3 . . . . . . . . . . . . 1 . 1 . . . Utility 11 | . 1 . . 2 . . . . . . 2 . . . 3 . 2 . . 1 Weapon 9 | . . . 2 2 . . . . . . . . 1 . 3 1 . . . . Tool/Special 2 | . . . . . . 1 . . . . . . 1 . . . . . . . Average Slot Usage (%) 82 | . 99 90 64 82 40 84 93 93 93 87 81 82 85 94 90 94 93 68 56 20 Engine 6 | . 14 14 9 5 . . . . . . . . 1 . . . . . 2 . Core 1 | . . . . . . 5 6 6 6 6 4 5 3 4 . . . . . . Treads 1 | . 14 5 . . . . . . . . . . . . . . . . . . Wheel 11 | . 14 21 28 . . . . . . . . . . . . . . . . . Flight 16 | . . . . 34 20 33 40 40 40 36 29 29 34 38 35 35 35 27 20 . Device 7 | . 14 4 . 11 . 11 13 13 13 13 11 11 9 11 8 11 10 8 7 . Storage 9 | . 13 13 13 6 6 6 6 6 6 6 5 5 5 5 5 5 5 5 4 . Processor 5 | . . . . 5 6 12 13 13 13 11 10 11 10 11 11 11 8 5 5 8 Hackware 4 | . . . . 10 6 6 6 6 6 6 9 11 10 8 10 11 12 10 8 8 Ballistic Gun 4 | . 14 14 2 . . . . . . . . . . . . . . . . . Ballistic Cannon 3 | . . 13 . . . . . . . . . . . . . . . . . . Slashing Weapon 2 | . . . 6 5 . 4 6 6 6 5 4 5 1 . . . . . . . Piercing Weapon 1 | . . . . . . . . . . . . . 3 5 5 5 5 5 4 . Peak Build Rating 107 | 6 8 14 17 50 28 74 74 72 72 72 89 89 94 94 107 101 104 86 80 44 Average Rating 44 | 4 7 11 13 40 28 65 73 70 72 65 81 89 77 91 96 99 100 81 63 26 On Entrance 54 | . 6 8 12 11 28 28 74 70 72 72 45 89 89 94 88 100 100 72 71 15 Naked Turns . | . . . . . . . . . . . . . . . . . . . . . Heaviest Build 213 | 10 30 212 213 25 10 24 24 24 24 24 30 24 33 37 36 38 45 29 30 9 Greatest Support 66 | 10 10 40 20 29 12 34 34 34 34 34 44 44 66 47 39 47 47 37 30 20 Greatest Overweight (x) 20 | . 2 20 10 . . 1 . . . . 1 . . . . 10 . . 1 2 Average Overweight (x) 1 | . 1 5 8 . . . . . . . . . . . . 2 . . . . Largest Inventory Capacity 35 | 5 15 35 35 35 10 10 10 10 10 10 10 10 10 10 10 10 10 10 10 5 Average Capacity 19 | 5 14 27 34 10 10 10 10 10 10 10 10 10 10 10 10 10 10 10 9 5 Most Carried 22 | 4 11 21 22 21 10 10 10 10 10 10 10 10 10 10 10 9 10 8 7 5 Average Carried 12 | 3 9 17 17 9 10 8 9 9 10 9 9 10 9 9 8 8 9 8 5 4 Final Capacity 35 | 5 15 35 35 10 10 10 10 10 10 10 10 10 10 10 10 10 10 10 5 5 Final Carried 22 | 4 11 21 22 10 10 10 9 10 10 10 10 10 10 8 8 9 9 8 5 3 Class Distribution -------------------- 35% | Hauler-Mutant 16% | Hacker-Scout 14% | Mutant 10% | Scout 8% | Hacker-Sprinter 4% | Scavenger-Scout 4% | Commander-Sprinter Dominant Class ---------------- Mutant | -10/Materials Hauler-Mutant | -10/Subcaves Hauler-Mutant | -8/Scraptown Scavenger-Scout | -6/Factory Mutant | -6/Waste Scout | -6/Factory Scout | -6/Lower Caves Scout | -6/Lower Caves Scout | -6/Data Miner Scout | -5/Proximity Caves Hacker-Scout | -5/Factory Hacker-Scout | -5/Waste Hacker-Scout | -5/Factory Hacker-Scout | -5/Extension Hacker-Sprinter | -5/Cetus Commander-Mutant | -5/Archives Hacker-Sprinter | -5/Hub_04(d) Hacker-Sprinter | -4/Factory Hacker-Sprinter | -4/Garrison Hacker-Sprinter | -4/Factory Resources | -11 -10 -10 -8 -6 -6 -6 -6 -6 -6 -5 -5 -5 -5 -5 -5 -5 -5 -4 -4 -4 ----------- Run | Yrd Mat Sub Scr Fac Was Fac Low Low Dat Pro Fac Was Fac Ext Cet Arc Hub Fac Gar Fac Matter Collected 2749 | 306 82 449 110 255 . 188 78 10 . . 229 . 349 334 136 99 79 45 . . Remotely . | . . . . . . . . . . . . . . . . . . . . . Salvage Created 2791 | 183 62 358 . 183 . 343 . . . . 269 . 467 543 35 76 185 61 . 26 Parts 164 | 12 9 23 . 12 . 15 . . . . 14 . 27 23 2 2 16 9 . . Haulers Intercepted 5 | . 1 . . . . 2 . . . . 1 . 1 . . . . . . . Recyclers Shooed 1 | . . . . . . . . . . . . . . 1 . . . . . . Parts Field Recycled . | . . . . . . . . . . . . . . . . . . . . . Retrieved Matter . | . . . . . . . . . . . . . . . . . . . . . Parts Self-Destructed 11 | . . 11 . . . . . . . . . . . . . . . . . . Prevented . | . . . . . . . . . . . . . . . . . . . . . Kills | -11 -10 -10 -8 -6 -6 -6 -6 -6 -6 -5 -5 -5 -5 -5 -5 -5 -5 -4 -4 -4 ------- Run | Yrd Mat Sub Scr Fac Was Fac Low Low Dat Pro Fac Was Fac Ext Cet Arc Hub Fac Gar Fac Combat Hostiles Destroyed 22 | . . 14 . 1 . 2 . . . . . . 2 . . 1 1 . . 1 Melee 6 | . . . . 1 . 2 . . . . . . 2 . . . . . . 1 Guns 4 | . . 4 . . . . . . . . . . . . . . . . . . Cannons 11 | . . 10 . . . . . . . . . . . . . 1 . . . . Classes Destroyed 12 | 2 2 4 . 3 . . . . . . 1 . . . . . . . . . Worker 6 | . . . . 1 . . . . . . . . . . . . 4 1 . . Builder 9 | . 1 . . 1 . 1 . . . . 1 . 3 . . . 1 1 . . Tunneler 8 | 5 . . . 1 . . . . . . . . 1 . . . . 1 . . Hauler 5 | . 1 . . . . 2 . . . . 1 . 1 . . . . . . . Recycler 4 | 1 . . . . . . . . . . . . . 3 . . . . . . Operator 6 | . . . . . . . . . . . 1 . 2 2 . . 1 . . . Watcher 12 | . . . . 2 . 2 . . . . 4 . . 2 1 . 1 . . . Swarmer 7 | . . 3 . . . 2 . . . . . . 1 . . . . . . 1 Grunt 2 | . . 1 . . . . . . . . . . . . . . 1 . . . Sentry 3 | . . 1 . . . . . . . . . . 1 . . 1 . . . . Programmer 1 | . . . . 1 . . . . . . . . . . . . . . . . Subdweller 9 | . . 9 . . . . . . . . . . . . . . . . . . Best Kill Streak 6 | 6 1 3 . 1 . 2 . . . . 1 . 3 2 1 1 4 6 . 1 Combat Bots Only 3 | . . 3 . 1 . 2 . . . . . . 2 . . 1 1 . . 1 Max Kills in Single Turn 3 | 1 1 1 . 1 . 1 . . . . 1 . 1 1 1 1 3 1 . 1 Gunslinging . | . . . . . . . . . . . . . . . . . . . . . Exploded . | . . . . . . . . . . . . . . . . . . . . . Melee 1 | . . . . 1 . 1 . . . . . . 1 . . . . . . 1 Uniques/NPCs Destroyed . | . . . . . . . . . . . . . . . . . . . . . Combat | -11 -10 -10 -8 -6 -6 -6 -6 -6 -6 -5 -5 -5 -5 -5 -5 -5 -5 -4 -4 -4 -------- Run | Yrd Mat Sub Scr Fac Was Fac Low Low Dat Pro Fac Was Fac Ext Cet Arc Hub Fac Gar Fac Hostile Shots Fired 689 | . . 70 . 95 . 44 10 2 . . 25 . 127 21 . 1 48 17 108 121 Missed 301 | . . 31 . 38 . 26 6 2 . . 11 . 53 10 . . 27 10 42 45 Hits 388 | . . 39 . 57 . 18 4 . . . 14 . 74 11 . 1 21 7 66 76 Melee 1 | . . . . . . . . . . . . . 1 . . . . . . . Projectile 387 | . . 39 . 57 . 18 4 . . . 14 . 73 11 . 1 21 7 66 76 AOE 3 | . . 2 . 1 . . . . . . . . . . . . . . . . Critical Strikes 13 | . . 2 . . . . . . . . 2 . 1 2 . . 4 . . 2 Damage Taken 7121 | . . 631 . 746 . 232 74 . . 332 329 . 1418 260 28 85 906 139 971 970 Core 2377 | . . 153 . 181 . 33 . . . 39 62 . 464 19 . 22 254 60 356 734 Absorbed by Shields 184 | . . . . . . . . . . . . . . . . 12 15 . 157 . Redirected to Shielding 92 | . . . . 92 . . . . . . . . . . . . . . . . Ignored by Resistances 86 | . . . . . . . . . . . . . . . . . . . . 86 Regen/Repaired (Parts) 546 | . . . . 97 . 227 . . . . 190 . 28 . 2 . . . 2 . Core Remaining (%) 56 | 100 . . 38 . . . . . . 70 . . . . . . 17 . . . Volleys Fired 111 | 12 24 54 . . . . . . . . . . . 4 2 7 7 . . 1 Largest 2 | 2 2 2 . . . . . . . . . . . 1 1 1 1 . . 1 Hottest 88 | 60 60 63 . . . . . . . . . . . 7 . 48 48 . . 88 Shots Fired 159 | 24 25 89 . . . . . . . . . . . 4 2 7 7 . . 1 Gun 87 | 24 25 38 . . . . . . . . . . . . . . . . . . Cannon 64 | . . 51 . . . . . . . . . . . . . 5 7 . . 1 Launcher . | . . . . . . . . . . . . . . . . . . . . . Special 8 | . . . . . . . . . . . . . . 4 2 2 . . . . Kinetic 134 | 12 24 86 . . . . . . . . . . . . . 5 7 . . . Thermal . | . . . . . . . . . . . . . . . . . . . . . Explosive . | . . . . . . . . . . . . . . . . . . . . . Electromagnetic 17 | 12 1 3 . . . . . . . . . . . . . . . . . 1 Robot Hit Streak 19 | 6 8 19 . . . . . . . . . . . 7 9 5 . . . . Robot Miss Streak 3 | 3 3 1 . . . . . . . . . . . . . 2 . . . 1 Penetration Max . | . . . . . . . . . . . . . . . . . . . . . Secondary Targets . | . . . . . . . . . . . . . . . . . . . . . Shots Hit Robots 167 | 11 15 53 . 11 . 11 . . . . 13 . 19 15 3 5 5 4 . 2 Core Hits 76 | 6 3 18 . 3 . 6 . . . . 2 . 9 8 1 1 16 3 . . Critical Kills 2 | 1 . . . . . . . . . . . . . . . 1 . . . . Critical Parts Destroyed 2 | . . . . . . . . . . . . . . . . 1 . . . 1 Critical Strikes 8 | 1 . 1 . . . . . . . . 1 . . . . 3 1 . . 1 Destroy 4 | 1 . . . . . . . . . . . . . . . 3 . . . . Blast 1 | . . 1 . . . . . . . . . . . . . . . . . . Smash 1 | . . . . . . . . . . . . . . . . . . . . 1 Sever 1 | . . . . . . . . . . . 1 . . . . . . . . . Impale 1 | . . . . . . . . . . . . . . . . . 1 . . . Melee Attacks 293 | . . . . 37 . 36 5 6 . 6 69 . 54 26 1 . 26 7 18 2 Impact 1 | . . . . . . . . . . . . . . . . . . . . 1 Slashing 174 | . . . . 37 . 36 5 6 . 6 69 . 15 . . . . . . . Piercing 118 | . . . . . . . . . . . . . 39 26 1 . 26 7 18 1 Sneak Attacks 25 | . . . . 4 . 3 . . . . 4 . 6 3 . . 2 3 . . Combat Hostiles 2 | . . . . 1 . . . . . . . . . . . . 1 . . . Follow-up Attacks 1 | . . . . . . . . . . . . . . . . . . . . 1 Damage Inflicted 7711 | 227 170 948 . 891 . 847 . . . . 1035 . 1207 640 47 56 1331 229 . 83 Guns 674 | 156 170 348 . . . . . . . . . . . . . . . . . . Cannons 679 | . . 600 . . . . . . . . . . . . . 56 23 . . . Explosions 1061 | 71 . . . . . . . . . . . . . . . . 990 . . . Melee 5297 | . . . . 891 . 847 . . . . 1035 . 1207 640 47 . 318 229 . 83 Ramming . | . . . . . . . . . . . . . . . . . . . . . Kinetic 1224 | 61 170 914 . . . . . . . . . . . . . 56 23 . . . Thermal 71 | 71 . . . . . . . . . . . . . . . . . . . . Explosive . | . . . . . . . . . . . . . . . . . . . . . Electromagnetic 1119 | 95 . 34 . . . . . . . . . . . . . . 990 . . . Impact 44 | . . . . . . . . . . . . . . . . . . . . 44 Slashing 3124 | . . . . 891 . 847 . . . . 1035 . 351 . . . . . . . Piercing 2129 | . . . . . . . . . . . . . 856 640 47 . 318 229 . 39 Highest Corruption 15 | . . . . 3 10 10 5 5 5 15 2 11 11 1 1 . 3 . 1 1 Average Corruption 3 | . . . . 1 6 6 5 5 5 7 2 2 6 1 1 . 1 . 1 1 Corruption Purged 31 | . . . . . . 5 . . . . . . 23 . 1 . 2 . . . Corruption Blocked . | . . . . . . . . . . . . . . . . . . . . . Effects 71 | . . . . 1 1 17 4 2 1 3 11 . 28 . 2 . . . 1 . Message Errors 16 | . . . . . 1 6 . 1 . 1 3 . 4 . . . . . . . Matter Fused 20 | . . . . . . 4 . . . 1 5 . 8 . 1 . . . 1 . Heat Flow Errors 8 | . . . . . . 1 1 1 . . . . 4 . 1 . . . . . Energy Discharges 10 | . . . . . . 2 2 . . . 2 . 4 . . . . . . . Parts Rejected 1 | . . . . . . . . . . . . . 1 . . . . . . . Data Loss (minor) 10 | . . . . 1 . 2 1 . 1 . . . 5 . . . . . . . Data Loss (major) 4 | . . . . . . 2 . . . 1 . . 1 . . . . . . . Alerts 1 | . . . . . . . . . . . 1 . . . . . . . . . Misdirections 1 | . . . . . . . . . . . . . 1 . . . . . . . Overload Shots . | . . . . . . . . . . . . . . . . . . . . . Overflow Damage 1154 | . . . . 315 . 85 . . . . 394 . 177 43 . . 82 . . 58 Projectiles . | . . . . . . . . . . . . . . . . . . . . . Explosions 64 | . . . . . . . . . . . . . . . . . 64 . . . Melee 1090 | . . . . 315 . 85 . . . . 394 . 177 43 . . 18 . . 58 Knockbacks 4 | . . 4 . . . . . . . . . . . . . . . . . . Impact . | . . . . . . . . . . . . . . . . . . . . . Kinetic 4 | . . 4 . . . . . . . . . . . . . . . . . . Secondary . | . . . . . . . . . . . . . . . . . . . . . Self-Inflicted Damage 314 | . . . . . . . . . . . . . . . . . 314 . . . Shots 4 | . . . . . . . . . . . . . . . . . 4 . . . Rammed . | . . . . . . . . . . . . . . . . . . . . . Targets Rammed . | . . . . . . . . . . . . . . . . . . . . . Kicked . | . . . . . . . . . . . . . . . . . . . . . Crushed . | . . . . . . . . . . . . . . . . . . . . . Highest Temperature 256 | 20 . . . 7 . 205 199 141 4 3 . . 256 144 249 9 129 . . 2 Average Temperature 31 | 20 . . . 4 . 16 26 17 2 2 . . 70 55 156 4 19 . . 1 Received Heat Transfer 850 | . . 180 . 156 . . 21 . . . 36 . 147 102 . . 160 . 30 18 Siege Activations . | . . . . . . . . . . . . . . . . . . . . . Martial Activations . | . . . . . . . . . . . . . . . . . . . . . Shielding Activations . | . . . . . . . . . . . . . . . . . . . . . Robots Disrupted . | . . . . . . . . . . . . . . . . . . . . . Combat Hostiles . | . . . . . . . . . . . . . . . . . . . . . Robots Corrupted 1 | . . . . . . . . . . . . . . . . . 1 . . . Combat Hostiles 1 | . . . . . . . . . . . . . . . . . 1 . . . Parts Fried 2 | . . . . . . . . . . . . . . . . . 2 . . . Impact Corruptions 2 | . . . . . . . . . . . . . . . . . . . . 2 Robots Melted . | . . . . . . . . . . . . . . . . . . . . . Combat Hostiles . | . . . . . . . . . . . . . . . . . . . . . Parts Melted 2 | . . 2 . . . . . . . . . . . . . . . . . . Heat Transferred 100 | 100 . . . . . . . . . . . . . . . . . . . . Parts Sabotaged . | . . . . . . . . . . . . . . . . . . . . . Parts Stolen . | . . . . . . . . . . . . . . . . . . . . . Parts Stripped . | . . . . . . . . . . . . . . . . . . . . . Power Chain Reactions 3 | 2 . . . . . . . . . . . . . . . . 1 . . . Alert | -11 -10 -10 -8 -6 -6 -6 -6 -6 -6 -5 -5 -5 -5 -5 -5 -5 -5 -4 -4 -4 ------- Run | Yrd Mat Sub Scr Fac Was Fac Low Low Dat Pro Fac Was Fac Ext Cet Arc Hub Fac Gar Fac Maximum Alert Level 4 | . . . . 3 1 2 . . . . 1 . 2 1 1 1 4 3 2 1 Low Security (%) 48 | 100 100 . . 33 . 22 . . . . 59 100 70 51 13 61 33 . . . Level 1 37 | . . . . 53 100 13 . . . . 40 . 28 48 86 38 43 . . 100 Level 2 11 | . . . . 11 . 64 . . . . . . . . . . 13 . 100 . Level 3 1 | . . . . 1 . . . . . . . . . . . . 2 100 . . Level 4 . | . . . . . . . . . . . . . . . . . 7 . . . Level 5 . | . . . . . . . . . . . . . . . . . . . . . High Security . | . . . . . . . . . . . . . . . . . . . . . Max Security . | . . . . . . . . . . . . . . . . . . . . . Peak Influence 1503 | 15 7 . . 771 267 673 . . . . 288 38 430 373 348 253 1503 796 627 308 Initial 731 | . . . . . 267 179 . . . . . 38 26 84 176 88 46 731 522 308 Average 211 | 4 . . . 230 264 440 . . . . 126 38 126 189 252 184 307 769 554 292 Influence Increases 8325 | 30 12 205 . 1256 . 795 60 45 . . 962 . 971 627 347 205 2500 95 185 30 Destroy 0b10 Robot/C 1240 | . . 100 . 20 . 40 . . . . . . 40 300 160 80 480 . . 20 Destroy 0b10 Robot/NC 290 | 30 10 . . 25 . 25 . . . . 35 . 45 35 10 5 55 15 . . Destroy Leader 196 | . 2 . . 14 . 18 . . . . 10 . 12 34 . . 96 . . 10 Allied During Kill 766 | . . . . . . . . . . . . . . 100 129 85 452 . . . Successful Hack 743 | . . . . 208 . 134 . . . . 143 . 52 17 . . 126 63 . . Select Force Hacks 160 | . . . . 60 . 30 . . . . 20 . 50 . . . . . . . Disable Machine 390 | . . . . 15 . 15 . . . . 15 . 60 15 . 15 255 . . . Anti-Garrison Action 650 | . . . . 200 . 200 . . . . 200 . . . . . . . 50 . Destroy Structure 1040 | . . . . 24 . 18 . . . . 104 . 52 66 48 20 676 2 30 . Partial Spotted 600 | . . . . 105 . 60 . . . . 180 . 75 15 . . 135 15 15 . Lose Combat Pursuer 2250 | . . 105 . 585 . 255 60 45 . . 255 . 585 45 . . 225 . 90 . Influence Decreases 8037 | 30 12 205 . 491 508 918 164 46 29 . 852 72 836 485 441 293 1140 842 344 329 Entered New Map 2459 | . . . . . 498 78 51 6 29 . . 72 12 89 139 133 87 762 224 279 Time Decay 2949 | 30 12 185 . 371 10 350 103 40 . . 456 . 404 206 262 140 310 40 . 30 Search Patrol Dispatched 150 | . . . . . . 150 . . . . . . . . . . . . . . Lost Part 564 | . . 20 . 110 . 30 10 . . . 14 . 120 30 . . 70 20 120 20 Lost Ally 405 | . . . . 10 . 10 . . . . 45 . . 160 40 20 100 20 . . Purge Threat 1510 | . . . . . . 300 . . . . 337 . 300 . . . 573 . . . Squads Dispatched 85 | . 3 . . 17 . 16 . . . . 19 . 17 3 . . 8 2 . . Investigation 59 | . 1 . . 14 . 13 . . . . 13 . 12 2 . . 2 2 . . Extermination 16 | . . . . 3 . 2 . . . . 5 . 4 . . . 2 . . . Reinforcement 10 | . 2 . . . . 1 . . . . 1 . 1 1 . . 4 . . . Assault . | . . . . . . . . . . . . . . . . . . . . . Garrison . | . . . . . . . . . . . . . . . . . . . . . Intercept . | . . . . . . . . . . . . . . . . . . . . . Searches Triggered 1 | . . . . . . 1 . . . . . . . . . . . . . . Data Miner Redirects 7 | . . . . . . . . . . . 2 . 4 . . . . 1 . . Construction Impeded 2 | . . . . . . . . . . . . . . 1 . . 1 . . . Haulers Reinforced 2 | . . . . . . 1 . . . . 1 . . . . . . . . . Active Scanning Responses . | . . . . . . . . . . . . . . . . . . . . . Cargo Convoy Interrupts 1 | . . . . . . . . . . . . . 1 . . . . . . . Stealth | -11 -10 -10 -8 -6 -6 -6 -6 -6 -6 -5 -5 -5 -5 -5 -5 -5 -5 -4 -4 -4 --------- Run | Yrd Mat Sub Scr Fac Was Fac Low Low Dat Pro Fac Was Fac Ext Cet Arc Hub Fac Gar Fac Distress Signals 15 | . 1 . . 3 . . . . . . 1 . 2 3 2 1 1 1 . . Communications Jammed . | . . . . . . . . . . . . . . . . . . . . . Distress Signals . | . . . . . . . . . . . . . . . . . . . . . Times Spotted 329 | . 4 19 . 48 5 19 5 3 . . 25 5 72 24 10 4 55 10 13 8 Peak Tracking Total 22 | . 1 4 . 14 5 8 4 3 . . 5 5 17 9 5 2 22 9 11 8 Tactical Retreats 60 | . . 5 . 12 . 7 1 1 . . 8 . 18 2 . . 4 . 2 . Traps | -11 -10 -10 -8 -6 -6 -6 -6 -6 -6 -5 -5 -5 -5 -5 -5 -5 -5 -4 -4 -4 ------- Run | Yrd Mat Sub Scr Fac Was Fac Low Low Dat Pro Fac Was Fac Ext Cet Arc Hub Fac Gar Fac Traps Triggered 23 | . . . . 6 . . . . . . 4 . 5 2 . . 1 1 4 . Indirectly 1 | . . . . . . . . . . . . . . . . . 1 . . . Trap Hack Attempts . | . . . . . . . . . . . . . . . . . . . . . Triggered . | . . . . . . . . . . . . . . . . . . . . . Disarmed . | . . . . . . . . . . . . . . . . . . . . . Reprogrammed . | . . . . . . . . . . . . . . . . . . . . . Reused . | . . . . . . . . . . . . . . . . . . . . . Traps Extracted . | . . . . . . . . . . . . . . . . . . . . . Installed 1 | . . 1 . . . . . . . . . . . . . . . . . . Triggered . | . . . . . . . . . . . . . . . . . . . . . Most Traps Carried 1 | . . 1 . . . . . . . . . . . . . . . . . . Machines | -11 -10 -10 -8 -6 -6 -6 -6 -6 -6 -5 -5 -5 -5 -5 -5 -5 -5 -4 -4 -4 ---------- Run | Yrd Mat Sub Scr Fac Was Fac Low Low Dat Pro Fac Was Fac Ext Cet Arc Hub Fac Gar Fac Machines Disabled 26 | . . . . 1 . 1 . . . . 1 . 4 1 . 1 17 . . . Max in Single Turn 6 | . . . . 1 . 1 . . . . 1 . 1 . . . 6 . . . Garrison Access 9 | . . . . 2 . 1 . . . . 3 . 2 . . . 1 . . . Network Hub 3 | . . . . . . . . . . . . . . . . . 3 . . . Machines Repaired . | . . . . . . . . . . . . . . . . . . . . . Machines Dismantled . | . . . . . . . . . . . . . . . . . . . . . Machines Sabotaged . | . . . . . . . . . . . . . . . . . . . . . Overloaded Fab Kills 2 | . . . . . . . . . . . . . 2 . . . . . . . Hacking | -11 -10 -10 -8 -6 -6 -6 -6 -6 -6 -5 -5 -5 -5 -5 -5 -5 -5 -4 -4 -4 --------- Run | Yrd Mat Sub Scr Fac Was Fac Low Low Dat Pro Fac Was Fac Ext Cet Arc Hub Fac Gar Fac Machines Accessed 151 | . 1 1 3 28 . 25 . . 4 . 37 . 25 7 . . 13 6 1 . Terminals 75 | . 1 . . 12 . 11 . . . . 17 . 11 6 . . 12 4 1 . Fabricators 10 | . . . . 1 . 1 . . . . 4 . 4 . . . . . . . Repair Stations 12 | . . . . 4 . 4 . . . . 3 . 1 . . . . . . . Recycling Units 28 | . . . . 6 . 7 . . . . 8 . 5 1 . . . 1 . . Scanalyzers 6 | . . . . 3 . 1 . . . . 1 . 1 . . . . . . . Garrison Access 12 | . . . . 2 . 1 . . . . 4 . 3 . . . 1 1 . . Total Hacks 561 | . 3 4 26 91 . 80 . . 32 . 136 . 61 33 . . 70 24 1 . Successful 355 | . 1 4 26 57 . 38 . . 32 . 91 . 34 15 . . 42 14 1 . Failed 206 | . 2 . . 34 . 42 . . . . 45 . 27 18 . . 28 10 . . Catastrophic 27 | . . . . 4 . 8 . . . . 7 . 3 4 . . 1 . . . Database Lockouts . | . . . . . . . . . . . . . . . . . . . . . Manual 354 | . 3 . . 56 . 64 . . . . 92 . 46 33 1 . 40 18 1 . Terminals 355 | . 3 . . 53 . 44 . . . . 102 . 31 30 . . 69 22 1 . Fabricators 29 | . . . . 3 . 4 . . . . 7 . 15 . . . . . . . Repair Stations 28 | . . . . 8 . 13 . . . . 6 . 1 . . . . . . . Recycling Units 46 | . . . . 7 . 17 . . . . 12 . 6 3 . . . 1 . . Scanalyzers 24 | . . . . 17 . 1 . . . . 3 . 3 . . . . . . . Garrison Access 17 | . . . . 3 . 1 . . . . 6 . 5 . . . 1 1 . . Terminal Hacks 131 | . . 4 26 9 . 6 . . 32 . 26 . 3 3 . . 19 3 . . Record 41 | . . 4 26 . . . . . 11 . . . . . . . . . . . Part Schematic 18 | . . . . . . 1 . . 11 . 2 . 1 1 . . 2 . . . Robot Schematic 7 | . . . . . . . . . 7 . . . . . . . . . . . Robot Analysis 4 | . . . . . . 1 . . . . . . . 2 . . 1 . . . Prototype ID Bank 10 | . . . . 2 . . . . 3 . 3 . . . . . 1 1 . . Level Access Points 1 | . . . . . . . . . . . . . . . . . 1 . . . Branch Access Points 3 | . . . . . . 1 . . . . 1 . . . . . . 1 . . Emergency Access Points 3 | . . . . . . . . . . . 1 . . . . . 2 . . . Machine Index 1 | . . . . . . . . . . . 1 . . . . . . . . . Terminal Index 2 | . . . . 1 . . . . . . 1 . . . . . . . . . Fabricator Index 1 | . . . . . . . . . . . 1 . . . . . . . . . Recycling Unit Index 2 | . . . . . . . . . . . 1 . . . . . 1 . . . Scanalyzer Index 1 | . . . . 1 . . . . . . . . . . . . . . . . Garrison Index 1 | . . . . 1 . . . . . . . . . . . . . . . . Alert Level 1 | . . . . . . . . . . . . . . . . . 1 . . . Unreport Threat 13 | . . . . . . 2 . . . . 4 . 2 . . . 5 . . . Locate Traps 2 | . . . . 1 . . . . . . 1 . . . . . . . . . Dispatch Records 1 | . . . . . . . . . . . 1 . . . . . . . . . Extermination Status 1 | . . . . . . . . . . . 1 . . . . . . . . . Recall Extermination 3 | . . . . . . . . . . . 3 . . . . . . . . . Recall Reinforcements 2 | . . . . . . . . . . . 1 . . . . . 1 . . . Registered Components 2 | . . . . . . . . . . . 1 . . . . . 1 . . . Registered Prototypes 1 | . . . . . . . . . . . . . . . . . 1 . . . Zone Layout 10 | . . . . 3 . 1 . . . . 3 . . . . . 2 1 . . Fabricator Hacks 10 | . . . . 1 . . . . . . 2 . 7 . . . . . . . Network Status 1 | . . . . . . . . . . . 1 . . . . . . . . . Load Schematic 6 | . . . . 1 . . . . . . 1 . 4 . . . . . . . Build 3 | . . . . . . . . . . . . . 3 . . . . . . . Repair Station Hacks 14 | . . . . 6 . 4 . . . . 4 . . . . . . . . . Scan Component 7 | . . . . 3 . 2 . . . . 2 . . . . . . . . . Repair 7 | . . . . 3 . 2 . . . . 2 . . . . . . . . . Recycling Unit Hacks . | . . . . . . . . . . . . . . . . . . . . . Scanalyzer 13 | . . . . 9 . . . . . . 2 . 2 . . . . . . . Insert Component 7 | . . . . 5 . . . . . . 1 . 1 . . . . . . . Analyze 6 | . . . . 4 . . . . . . 1 . 1 . . . . . . . Garrison Access Hacks 7 | . . . . 1 . . . . . . 2 . 2 . . . 1 1 . . Unlock Access 1 | . . . . . . . . . . . . . . . . . . 1 . . Seal Access 6 | . . . . 1 . . . . . . 2 . 2 . . . 1 . . . Unauthorized Hacks 180 | . 1 . . 31 . 28 . . . . 55 . 20 12 . . 22 10 1 . Terminals 135 | . 1 . . 21 . 16 . . . . 43 . 11 11 . . 22 9 1 . Track 19 | . . . . 4 . 2 . . . . 5 . . 1 . . 6 1 . . Assimilate 8 | . . . . 1 . 1 . . . . 5 . . . . . . 1 . . Botnet 44 | . . . . 6 . 8 . . . . 13 . 4 3 . . 7 3 . . Disrupt 12 | . . . . . . . . . . . 4 . 1 3 . . 3 1 . . Operators 2 | . . . . . . . . . . . 1 . . 1 . . . . . . Skim 49 | . 1 . . 10 . 5 . . . . 15 . 6 3 . . 6 3 . . Override 1 | . . . . . . . . . . . . . . . . . . . 1 . Fabricators 7 | . . . . . . 1 . . . . 2 . 4 . . . . . . . Prioritize 2 | . . . . . . . . . . . . . 2 . . . . . . . Overload 1 | . . . . . . . . . . . . . 1 . . . . . . . Download 1 | . . . . . . . . . . . 1 . . . . . . . . . Recompile 3 | . . . . . . 1 . . . . 1 . 1 . . . . . . . Repair Stations 5 | . . . . 1 . 2 . . . . 1 . 1 . . . . . . . Patch 5 | . . . . 1 . 2 . . . . 1 . 1 . . . . . . . Recycling Units 27 | . . . . 6 . 7 . . . . 8 . 4 1 . . . 1 . . Fedlink 27 | . . . . 6 . 7 . . . . 8 . 4 1 . . . 1 . . Scanalyzers 3 | . . . . 2 . 1 . . . . . . . . . . . . . . Extract 3 | . . . . 2 . 1 . . . . . . . . . . . . . . Garrison Access 3 | . . . . 1 . 1 . . . . 1 . . . . . . . . . Jam 3 | . . . . 1 . 1 . . . . 1 . . . . . . . . . Data Cores Recovered 5 | . . . . . . . . . . . 1 . 2 1 . . 1 . . . Used 1 | . . . . . . . . . . . . . . 1 . . . . . . Hacking Detections 95 | . 1 . . 19 . 16 . . . . 21 . 17 7 . . 10 4 . . Full Trace Events 12 | . . . . 4 . 1 . . . . . . 4 1 . . 2 . . . Feedback Events 4 | . . . . 1 . . . . . . . . 2 . . . 1 . . . Corruption 2 | . . . . 1 . . . . . . . . 1 . . . . . . . Hackware Fried 2 | . . . . . . . . . . . . . 1 . . . 1 . . . Feedback Blocked . | . . . . . . . . . . . . . . . . . . . . . Robot Schematics Acquired 7 | . . . . . . . . . 7 . . . . . . . . . . . Robots Built . | . . . . . . . . . . . . . . . . . . . . . Authchips . | . . . . . . . . . . . . . . . . . . . . . Time . | . . . . . . . . . . . . . . . . . . . . . Total Robot Build Rating . | . . . . . . . . . . . . . . . . . . . . . Part Schematics Acquired 29 | . . . . 6 . 3 . . 11 . 4 . 2 1 . . 2 . . . Parts Built 5 | . . . . . . . . . . . . . 5 . . . . . . . Authchips 3 | . . . . . . . . . . . . . 3 . . . . . . . Time 94 | . . . . . . . . . . . . . 94 . . . . . . . Total Part Build Rating 24 | . . . . . . . . . . . . . 24 . . . . . . . Parts Repaired 7 | . . . . 3 . 2 . . . . 2 . . . . . . . . . Time 227 | . . . . 89 . 44 . . . . 94 . . . . . . . . . Parts Recycled . | . . . . . . . . . . . . . . . . . . . . . Recycled Matter . | . . . . . . . . . . . . . . . . . . . . . Retrieved Matter . | . . . . . . . . . . . . . . . . . . . . . Retrieved Components . | . . . . . . . . . . . . . . . . . . . . . Parts Scanalyzed 5 | . . . . 3 . . . . . . 1 . 1 . . . . . . . Part Schematics Acquired 5 | . . . . 3 . . . . . . 1 . 1 . . . . . . . Parts Damaged 1 | . . . . 1 . . . . . . . . . . . . . . . . Bothacking | -11 -10 -10 -8 -6 -6 -6 -6 -6 -6 -5 -5 -5 -5 -5 -5 -5 -5 -4 -4 -4 ------------ Run | Yrd Mat Sub Scr Fac Was Fac Low Low Dat Pro Fac Was Fac Ext Cet Arc Hub Fac Gar Fac Used RIF Installer . | . . . . . . . . . . . . . . . . . . . . . Robots Hacked 1 | . . . . . . . . . . . . . . . . 1 . . . . Non-combat 1 | . . . . . . . . . . . . . . . . 1 . . . . Combat . | . . . . . . . . . . . . . . . . . . . . . Robot Hacks Applied 2 | . . . . . . . . . . . . . . . . 2 . . . . check_alert 2 | . . . . . . . . . . . . . . . . 2 . . . . Relay Couplers Released 2 | . . . . . . . . . . . . . . . . . 2 . . . Machine Destruction 2 | . . . . . . . . . . . . . . . . . 2 . . . Fabnet Peak Effective % . | . . . . . . . . . . . . . . . . . . . . . Robots Rewired 5 | . . . . 1 . . . . . . . . . 3 . . . 1 . . Allies Hacked . | . . . . . . . . . . . . . . . . . . . . . Hacks Repelled . | . . . . . . . . . . . . . . . . . . . . . Allies | -11 -10 -10 -8 -6 -6 -6 -6 -6 -6 -5 -5 -5 -5 -5 -5 -5 -5 -4 -4 -4 -------- Run | Yrd Mat Sub Scr Fac Was Fac Low Low Dat Pro Fac Was Fac Ext Cet Arc Hub Fac Gar Fac Total Allies 31 | . . . . 1 1 1 . . . . 5 . . 15 6 . . 2 . . Largest Group 9 | . . . . 1 1 1 . . . . 2 . . 7 9 8 6 2 . . Highest-Rated Group 659 | . . . . 40 31 26 . . . . 36 . . 344 659 641 574 57 . . Highest-Rated Ally 159 | . . . . 40 31 26 . . . . 26 . . 159 159 106 101 45 . . Total Orders 7 | . . . . . . . . . . . . . . . . . 7 . . . STAY 4 | . . . . . . . . . . . . . . . . . 4 . . . FOLLOW 3 | . . . . . . . . . . . . . . . . . 3 . . . Ally Attacks 383 | . . . . . 6 . . . . . . . . 100 86 43 141 7 . . Total Damage 11009 | . . . . . 127 . . . . . . . . 2004 2596 1151 5115 16 . . Kills 59 | . . . . . . . . . . . . . . 15 11 5 28 . . . Allies Corrupted 2 | . . . . . . . . . . . 1 . . 1 . . . . . . Allies Melted . | . . . . . . . . . . . . . . . . . . . . . Intel | -11 -10 -10 -8 -6 -6 -6 -6 -6 -6 -5 -5 -5 -5 -5 -5 -5 -5 -4 -4 -4 ------- Run | Yrd Mat Sub Scr Fac Was Fac Low Low Dat Pro Fac Was Fac Ext Cet Arc Hub Fac Gar Fac Active Infowar (turns) 9076 | 22 429 1411 . 813 . 760 223 83 85 87 1777 16 1277 421 559 292 631 77 113 . Optics 187 | . . . . . . . . . . . 187 . . . . . . . . . Sensors 5077 | . . . . 691 . 569 223 83 85 87 1777 16 1076 421 49 . . . . . Terrain 5905 | . . . . . . 760 223 83 85 87 1773 16 785 421 559 292 631 77 113 . Structural 2358 | . . 1411 . 731 . . . . . . . . 216 . . . . . . . Traps 224 | . . . . . . . . . . . 224 . . . . . . . . . Seismic 526 | 22 429 . . 75 . . . . . . . . . . . . . . . . ECM 34 | . . . . . . . . . . . . . 34 . . . . . . . Robot Analysis Total 4 | . . . . . . 1 . . . . . . . 2 . . 1 . . . Derelict Logs Recovered 8 | . . 2 4 . . . . 1 . 1 . . . . . . . . . . Drone Launches . | . . . . . . . . . . . . . . . . . . . . . Drone Recoveries . | . . . . . . . . . . . . . . . . . . . . . Exploration | -11 -10 -10 -8 -6 -6 -6 -6 -6 -6 -5 -5 -5 -5 -5 -5 -5 -5 -4 -4 -4 ------------- Run | Yrd Mat Sub Scr Fac Was Fac Low Low Dat Pro Fac Was Fac Ext Cet Arc Hub Fac Gar Fac Turns Passed 15288 | 112 429 4015 3024 908 27 795 223 83 85 87 1777 16 1401 421 561 292 699 94 164 75 Spaces Moved 17641 | 68 324 1991 1405 1944 72 1702 287 233 144 231 3758 60 2317 611 666 129 1087 237 274 101 Core 281 | 15 . . 121 . . . . . . . . . . . . 29 . . 17 99 Treads 248 | . . 248 . . . . . . . . . . . . . . . . . . Legs 2 | . . . . . . . . . . . . . . . . . . . . 2 Wheels 3404 | 53 324 1743 1284 . . . . . . . . . . . . . . . . . Hover 55 | . . . . . . 55 . . . . . . . . . . . . . . Flight 13651 | . . . . 1944 72 1647 287 233 144 231 3758 60 2317 611 666 100 1087 237 257 . Fastest Speed 19 | 50 80 80 50 24 34 22 23 23 23 23 23 27 19 24 28 27 19 22 24 50 Average Speed 62 | 73 109 184 210 27 34 26 23 23 23 23 27 27 28 26 28 145 25 23 26 53 Slowest Speed 550 | 80 110 380 230 37 34 107 23 23 23 28 100 27 33 29 28 550 30 25 50 150 Overloaded Moves 16 | . . . . . . 1 . . . . . . . . . . 3 . 12 . Propulsion Burnouts . | . . . . . . . . . . . . . . . . . . . . . Robots Hopped 96 | . . . . 23 . 12 . . . . 16 . 18 6 5 . 9 4 3 . Potential Cave-ins . | . . . . . . . . . . . . . . . . . . . . . Cave-ins Triggered 1 | . . . . . . . . . . 1 . . . . . . . . . . Exploration Rate (%) 57 | 5 72 92 85 56 70 47 56 44 75 44 82 79 63 76 59 75 65 10 45 5 Regions Visited 20 Branch Regions 10 Pre-discovered Areas 18 | . . 2 6 4 . 2 . . 1 . 1 . 1 . . . 1 . . . Known Exits Taken 12 | . . . 1 . . 1 1 1 1 1 . . 1 1 1 1 1 1 . . Unknown Exits Taken 3 | 1 1 1 . . . . . . . . . . . . . . . . . . Scrap Searched 20 | . . 10 6 . . . 2 2 . . . . . . . . . . . . Spaces Dug 173 | . . . . 24 . 18 5 6 . 6 52 . 26 10 . . 15 1 10 . Terrain Destroyed 649 | 3 . . . 24 . 18 5 6 . 6 52 . 26 10 . 4 484 1 10 . Melee 173 | . . . . 24 . 18 5 6 . 6 52 . 26 10 . . 15 1 10 . Projectile 4 | . . . . . . . . . . . . . . . . 4 . . . . AOE 472 | 3 . . . . . . . . . . . . . . . . 469 . . . Terrain Rammed . | . . . . . . . . . . . . . . . . . . . . . Walls Destroyed . | . . . . . . . . . . . . . . . . . . . . . Machines Disabled . | . . . . . . . . . . . . . . . . . . . . . Actions | -11 -10 -10 -8 -6 -6 -6 -6 -6 -6 -5 -5 -5 -5 -5 -5 -5 -5 -4 -4 -4 --------- Run | Yrd Mat Sub Scr Fac Was Fac Low Low Dat Pro Fac Was Fac Ext Cet Arc Hub Fac Gar Fac Total 21117 | 102 373 2235 1482 2215 73 1952 433 249 195 250 4352 59 2935 811 1035 226 1443 255 326 116 Wait 2701 | 12 16 146 25 191 2 194 141 10 52 11 502 . 486 170 328 83 316 10 4 2 Move 17444 | 67 323 1990 1404 1900 71 1678 286 232 143 230 3726 59 2283 601 657 128 1069 229 267 101 Hop 84 | . . . . 21 . 11 . . . . 16 . 15 3 3 . 8 4 3 . Pick Up 101 | 3 8 21 26 5 . 4 . . . . 7 . 11 . 13 . 3 . . . Fast Attach 97 | 7 1 4 2 11 . 12 . . . . 11 . 27 1 5 3 4 2 1 6 Attach 61 | . . 2 2 15 . 6 1 . . 2 3 . 14 2 3 . 3 1 4 3 Detach 24 | 1 . 2 . 2 . 3 . . . 1 . . 6 1 3 1 1 . 2 1 Swap 58 | . . 9 3 5 . 5 . 1 . . 9 . 18 1 4 2 1 . . . Drop 101 | . 1 6 20 13 . 3 . . . . 9 . 21 2 16 2 5 . 2 1 Fire 111 | 12 24 54 . . . . . . . . . . . 4 2 7 7 . . 1 Melee 292 | . . . . 37 . 36 5 6 . 6 69 . 54 26 1 . 26 7 18 1 Ram . | . . . . . . . . . . . . . . . . . . . . . Kick . | . . . . . . . . . . . . . . . . . . . . . Crush . | . . . . . . . . . . . . . . . . . . . . . Escape Stasis 38 | . . . . 13 . . . . . . . . . . . . . . 25 . Rewire 4 | . . . . 2 . . . . . . . . . . . . . 2 . . Trap 1 | . . 1 . . . . . . . . . . . . . . . . . . Miscellaneous . | . . . . . . . . . . . . . . . . . . . . . Route ------- -11/Scrapyard -10/Materials (discovered 4 exits: [*Mat x3] / *Sub) -10/Subcaves (discovered 4 exits: [*Mat x2] / *Rec / *Scr) -8/Scraptown (discovered 2 exits: *Fac x2) -6/Factory (discovered 6 exits: *Fac x4 / *Low x2) -6/Waste -6/Factory (discovered 4 exits: *Fac x2 / *Low x2) -6/Lower Caves -6/Lower Caves -6/Data Miner -5/Proximity Caves -5/Factory (discovered 8 exits: *Fac x4 / *Upp x2 / *Ext x2) -5/Waste -5/Factory (discovered 8 exits: *Fac x4 / Upp x2 / *Ext x2) -5/Extension (discovered 2 exits: *Fac / *Cet) -5/Cetus (discovered 2 exits: *Fac / *Arc) -5/Archives (discovered 3 exits: *Fac / *Hub x2) -5/Hub_04(d) (discovered 4 exits: *Fac x4) -4/Factory (discovered 5 exits: Res x2 / Upp x2 / Gar) -4/Garrison (discovered 3 exits: *Fac x3) -4/Factory History --------- Turn | Location | Event 8 | -11/Scrapyard | Discovered new exit (range 15) 113 | -11/Scrapyard | Entered Materials 114 | -10/Materials | Met a group of wandering Federalists 234 | -10/Materials | Discovered new exit (range 9) 312 | -10/Materials | Build established: Mutant 427 | -10/Materials | Discovered new exit (range 7) 465 | -10/Materials | Discovered new exit (range 9) 481 | -10/Materials | Discovered new exit (range 8) 542 | -10/Materials | Entered Subcaves 543 | -10/Subcaves | Continued accompanying wandering Federalists (1) 574 | -10/Subcaves | Identified exit to Recycling 672 | -10/Subcaves | Discovered new exit (range 8) 715 | -10/Subcaves | Visited Clippyterm 718 | -10/Subcaves | Learned location of Extension (-5) 790 | -10/Subcaves | Wandering Federalist uncovered a shortcut to Scraptown 908 | -10/Subcaves | Shifting Twisted Machinery released Sub. Monowheel 909 | -10/Subcaves | Shifting Twisted Machinery released Sub. Shrapnel Launcher 934 | -10/Subcaves | Shifting Twisted Machinery released Sub. Monowheel 946 | -10/Subcaves | Shifting Twisted Machinery released Battle Rifle 1451 | -10/Subcaves | Learned location of Zion (-7) 1651 | -10/Subcaves | A swath of the cavern ceiling suddenly collapsed 2016 | -10/Subcaves | Discovered new exit (range 6) 2258 | -10/Subcaves | Core integrity fell below 50% 2400 | -10/Subcaves | Build established: Hauler-Mutant 4557 | -10/Subcaves | Entered Scraptown 4633 | -8/Scraptown | Visited Awakened 4691 | -8/Scraptown | Visited Cyclists 4756 | -8/Scraptown | Heard Great Nut preacher, LISTEN AND RECITE! 4764 | -8/Scraptown | Scanned Subdweller tech in exchange for log data 4768 | -8/Scraptown | Learned Factory stockpile data 4908 | -8/Scraptown | Visited UFD Registry 4908 | -8/Scraptown | Registered with UFD as "Megamachine" 4936 | -8/Scraptown | Visited TADAMA 4998 | -8/Scraptown | Visited IN-MT5's Study 5048 | -8/Scraptown | Entered Cyclist Reading Room 5120 | -8/Scraptown | Visited Bundlers 5263 | -8/Scraptown | Visited Fellowship of the Rings 5376 | -8/Scraptown | Visited SPCMW 6156 | -8/Scraptown | Visited Junk Repository 6220 | -8/Scraptown | Visited Junk Repository 6266 | -8/Scraptown | Visited Scrapoid Research Area 6324 | -8/Scraptown | Visited Derelict Rescue Squad 6358 | -8/Scraptown | Visited Infowarlord's Domain 6372 | -8/Scraptown | Found Exp. Signal Interpreter 6433 | -8/Scraptown | Visited Botcube Research 6451 | -8/Scraptown | Found Botcube 6489 | -8/Scraptown | Visited Abandonware Association 6517 | -8/Scraptown | Learned abandonware demo "ERRANTS.EXE" 6623 | -8/Scraptown | Visited Cartography Club 6693 | -8/Scraptown | Found Surveybot 17 Chip 6707 | -8/Scraptown | Found Deep Structural Scanner 6721 | -8/Scraptown | Learned location of Upper Caves (-4) 6721 | -8/Scraptown | Learned location of Warlord (-5) 6721 | -8/Scraptown | Learned location of Cetus (-5) 6721 | -8/Scraptown | Learned location of Hub_04(d) (-5) 6721 | -8/Scraptown | Learned 12 Materials zone layouts 6721 | -8/Scraptown | Learned 20 Factory zone layouts 6721 | -8/Scraptown | Learned 8 Lower Caves zone layouts 6721 | -8/Scraptown | Learned 16 Lower Caves zone layouts 6721 | -8/Scraptown | Learned 12 Upper Caves zone layouts 6721 | -8/Scraptown | Learned 24 Upper Caves zone layouts 6721 | -8/Scraptown | Learned 8 Proximity Caves zone layouts 6721 | -8/Scraptown | Learned 16 Proximity Caves zone layouts 6721 | -8/Scraptown | Learned 20 Proximity Caves zone layouts 6721 | -8/Scraptown | Learned Storage emergency access door positions 6721 | -8/Scraptown | Learned location of 1 exit from Lower Caves 6721 | -8/Scraptown | Learned location of 3 exits from Upper Caves 6721 | -8/Scraptown | Identified exit to Factory 7454 | -8/Scraptown | Met Optimus 7454 | -8/Scraptown | Accepted into 0bPrime 7581 | -8/Scraptown | Entered Factory 7581 | -6/Factory | Evolved 8 slots: Propulsion x4, Utility x4 7582 | -6/Factory | Identified exit to Factory 7583 | -6/Factory | Identified exit to Lower Caves 7676 | -6/Factory | Discovered exit to Lower Caves (range 7) 7714 | -6/Factory | Repaired Greatsword 7763 | -6/Factory | Loaded intel: 8 recycling unit locations 7840 | -6/Factory | Discovered exit to Factory (range 4) 7874 | -6/Factory | Learned location of Protoforge (-2) 7944 | -6/Factory | Build established: Scavenger-Scout 7960 | -6/Factory | Repaired Flight Unit 7981 | -6/Factory | Learned location of 1 exit from Upper Caves 8019 | -6/Factory | Learned 2 Hub_04(d) zone layouts 8051 | -6/Factory | Repaired Broken Exp. Signal Interpreter? 8126 | -6/Factory | Learned Factory emergency access door positions 8489 | -6/Factory | Manually triggered Chute Trap 8489 | -6/Factory | Sucked down chute 8489 | -6/Factory | Entered Waste 8490 | -6/Waste | Met a frightened Derelict 8492 | -6/Waste | Lost 4 parts (2n2u) 8495 | -6/Waste | Spotted C-40 Crusher 8497 | -6/Waste | Spotted C-40 Crusher 8504 | -6/Waste | EMP discharged 8504 | -6/Waste | System corruption reached 10% 8510 | -6/Waste | Spotted C-40 Crusher 8510 | -6/Waste | Discovered new exit (range 15) 8511 | -6/Waste | Spotted C-40 Crusher 8511 | -6/Waste | Spotted C-40 Crusher 8515 | -6/Waste | Identified exit to Factory 8516 | -6/Waste | Entered Factory 8618 | -6/Factory | Discovered exit to Factory (range 13) 8630 | -6/Factory | Discovered exit to Factory (range 6) 8697 | -6/Factory | Repaired Greatsword 8739 | -6/Factory | Loaded intel: 8 recycling unit locations 8931 | -6/Factory | Lost 3 parts (3n) 9056 | -6/Factory | Learned location of 1 exit from Upper Caves 9181 | -6/Factory | Learned Extension emergency access door positions 9200 | -6/Factory | Repaired Greatsword 9216 | -6/Factory | Search patrols dispatched 9221 | -6/Factory | Build established: Scout 9262 | -6/Factory | Loaded intel: 4 scanalyzer locations 9285 | -6/Factory | Learned Hub_04(d) emergency access door positions 9298 | -6/Factory | Learned location of 2 exits from Archives 9311 | -6/Factory | Entered Lower Caves 9312 | -6/Lower Caves | Identified exit to Lower Caves 9509 | -6/Lower Caves | Spotted B-75 Beast 9534 | -6/Lower Caves | Entered another Lower Caves area 9535 | -6/Lower Caves | Identified exit to Data Miner 9582 | -6/Lower Caves | Learned Factory stockpile data 9617 | -6/Lower Caves | Entered Data Miner 9617 | -6/Data Miner | Discovered new exit (range 6) 9622 | -6/Data Miner | Met Data Miner 9626 | -6/Data Miner | Learned location of Section 7 (-2) 9626 | -6/Data Miner | Acquired the access code to Warlord's prototype stash 9631 | -6/Data Miner | Received God Mode back door access code from Data Miner 9702 | -6/Data Miner | Identified exit to Proximity Caves 9702 | -6/Data Miner | Entered Proximity Caves 9767 | -5/Proximity Caves | Crushed by falling debris 9789 | -5/Proximity Caves | Entered Factory 9789 | -5/Factory | Evolved 2 slots: Propulsion x1, Utility x1 9790 | -5/Factory | Identified exit to Upper Caves 9798 | -5/Factory | Lost 5 parts (3n2u) 9948 | -5/Factory | Repaired Lgt. Fission Core 10133 | -5/Factory | Spotted B-75 Beast 10157 | -5/Factory | Discovered new exit (range 22) 10162 | -5/Factory | Identified exit to Factory 10166 | -5/Factory | Discovered exit to Factory (range 10) 10186 | -5/Factory | Loaded intel: 8 recycling unit locations 10373 | -5/Factory | Discovered new exit (range 12) 10385 | -5/Factory | Identified exit to Extension 10403 | -5/Factory | Learned Testing garrison access intel 10427 | -5/Factory | Discovered exit to Factory (range 8) 10436 | -5/Factory | Learned Extension trap positions 10458 | -5/Factory | Learned Research trap positions 10475 | -5/Factory | Learned Extension trap positions 10476 | -5/Factory | Learned 8 Research zone layouts 10476 | -5/Factory | Build established: Hacker-Scout 10477 | -5/Factory | Learned 2 Extension zone layouts 10483 | -5/Factory | Learned Research repair station intel 10499 | -5/Factory | Learned Research garrison access intel 10814 | -5/Factory | Discovered exit to Upper Caves (range 9) 10934 | -5/Factory | Learned 4 Proximity Caves zone layouts 11020 | -5/Factory | Learned Factory stockpile data 11023 | -5/Factory | Discovered exit to Factory (range 12) 11046 | -5/Factory | Learned 8 Research zone layouts 11085 | -5/Factory | Learned location of Armory (-3) 11122 | -5/Factory | Learned Research trap positions 11300 | -5/Factory | Incoming investigation squad redirected 11349 | -5/Factory | Incoming investigation squad redirected 11439 | -5/Factory | Repaired Greatsword 11524 | -5/Factory | Learned 4 Testing zone layouts 11566 | -5/Factory | Manually triggered Chute Trap 11566 | -5/Factory | Sucked down chute 11566 | -5/Factory | Entered Waste 11567 | -5/Waste | Identified exit to Factory 11569 | -5/Waste | Spotted C-40 Crusher 11569 | -5/Waste | Spotted C-40 Crusher 11572 | -5/Waste | Spotted C-40 Crusher 11578 | -5/Waste | Spotted C-40 Crusher 11579 | -5/Waste | Spotted C-40 Crusher 11579 | -5/Waste | Spotted C-40 Crusher 11581 | -5/Waste | EMP discharged 11581 | -5/Waste | System corruption reached 10% 11582 | -5/Waste | Entered Factory 11787 | -5/Factory | Spotted B-75 Beast 11793 | -5/Factory | Loaded intel: 8 recycling unit locations 11935 | -5/Factory | Discovered exit to Extension (range 8) 12041 | -5/Factory | Incoming investigation squad redirected 12048 | -5/Factory | Lost 9 parts (4n4u1w) 12050 | -5/Factory | Incoming investigation squad redirected 12161 | -5/Factory | Incoming investigation squad redirected 12170 | -5/Factory | Fabricated Cesium-ion Thruster (x2) 12192 | -5/Factory | Fabricated Adv. Hacking Suite? 12554 | -5/Factory | Core integrity fell below 50% 12641 | -5/Factory | Incoming investigation squad redirected 12667 | -5/Factory | Learned 8 Research zone layouts 12721 | -5/Factory | Fabricated Adv. System Restoration Module (x2) 12730 | -5/Factory | Learned 4 Extension zone layouts 12783 | -5/Factory | Discovered exit to Extension (range 12) 12790 | -5/Factory | Adv. Hacking Suite fried by hacking feedback 12812 | -5/Factory | Cargo convoy interrupted 12826 | -5/Factory | Learned Extension garrison access intel 12860 | -5/Factory | Learned Armory stockpile data 12918 | -5/Factory | Learned location of 3 exits from Research 12959 | -5/Factory | Learned Research repair station intel 12983 | -5/Factory | Entered Extension 12986 | -5/Extension | Loaded intel: 12 trap records 13056 | -5/Extension | Rescued a captive Derelict 13090 | -5/Extension | Rescued a captive Derelict 13091 | -5/Extension | Rescued a captive Derelict 13095 | -5/Extension | Rescued a captive Derelict 13115 | -5/Extension | Rescued a captive Derelict 13175 | -5/Extension | Spotted B-75 Beast 13194 | -5/Extension | Spotted B-75 Beast 13227 | -5/Extension | Loaded intel: 1 recycling unit location 13244 | -5/Extension | Lost 4 allies 13244 | -5/Extension | Rescued a captive Derelict 13244 | -5/Extension | Rescued a captive Derelict 13247 | -5/Extension | Rescued a captive Derelict 13250 | -5/Extension | Rescued a captive Derelict 13255 | -5/Extension | Rescued a captive Derelict 13260 | -5/Extension | Rescued a captive Derelict 13270 | -5/Extension | Rescued a captive Derelict 13271 | -5/Extension | Rescued a captive Derelict 13273 | -5/Extension | Rescued A7 13276 | -5/Extension | Lost 3 parts (1p1n1u) 13299 | -5/Extension | Discovered new exit (range 6) 13301 | -5/Extension | Identified exit to Cetus 13404 | -5/Extension | Entered Cetus 13404 | -5/Cetus | Accompanied by 7 allies (A7) 13409 | -5/Cetus | Acquired a Cetus Manufacturing Module code from A7 13413 | -5/Cetus | Spotted Cetus Guard 13413 | -5/Cetus | Spotted Cetus Guard 13433 | -5/Cetus | Spotted Cetus Guard 13446 | -5/Cetus | Allies destroyed Cetus Guard 13450 | -5/Cetus | Extracted ID and sensor layout for unrecognized location from A7's data core 13452 | -5/Cetus | Allies destroyed Cetus Guard 13453 | -5/Cetus | Found Prototype Protection 13453 | -5/Cetus | Identified Med. Regenerative Plating 13475 | -5/Cetus | Started Cetus Manufacturing Module 13485 | -5/Cetus | Lost 3 allies 13500 | -5/Cetus | Manufactured an Enhanced Grunt 13525 | -5/Cetus | Manufactured an Enhanced Grunt 13550 | -5/Cetus | Manufactured an Enhanced Grunt 13575 | -5/Cetus | Manufactured an Enhanced Grunt 13600 | -5/Cetus | Manufactured an Enhanced Grunt 13635 | -5/Cetus | Discovered new exit (range 15) 13641 | -5/Cetus | Spotted Cetus Guard 13641 | -5/Cetus | Spotted Cetus Guard 13673 | -5/Cetus | Spotted Cetus Guard 13673 | -5/Cetus | Spotted Cetus Guard 13676 | -5/Cetus | Allies destroyed Cetus Guard 13681 | -5/Cetus | Allies destroyed Cetus Guard 13814 | -5/Cetus | Botcube activated 13836 | -5/Cetus | Botcube completed mutation into hovering form, armed with 1 gun, 1 cannon. 13860 | -5/Cetus | Identified exit to Archives 13926 | -5/Cetus | Discovered exit to Factory (range 15) 13928 | -5/Cetus | Met Revision 17 13965 | -5/Cetus | Entered Archives 13965 | -5/Archives | Accompanied by 8 allies 13966 | -5/Archives | Identified exit to Hub_04(d) 14024 | -5/Archives | Discovered exit to Factory (range 16) 14257 | -5/Archives | Entered Hub_04(d) 14257 | -5/Hub_04(d) | Accompanied by 6 allies 14500 | -5/Hub_04(d) | Spotted B-75 Beast 14525 | -5/Hub_04(d) | Build established: Commander-Sprinter 14591 | -5/Hub_04(d) | Allies destroyed B-75 Beast 14598 | -5/Hub_04(d) | Discovered exit to Factory (range 13) 14771 | -5/Hub_04(d) | Learned Quarantine security intel 14813 | -5/Hub_04(d) | Learned location of 1 exit from Upper Caves 14842 | -5/Hub_04(d) | Adv. System Shield fried by hacking feedback 14844 | -5/Hub_04(d) | Learned Extension emergency access door positions 14878 | -5/Hub_04(d) | Learned Armory stockpile data 14879 | -5/Hub_04(d) | Learned Research trap positions 14882 | -5/Hub_04(d) | Build established: Hacker-Sprinter 14888 | -5/Hub_04(d) | Network Hub disabled 14889 | -5/Hub_04(d) | Learned 2 Proximity Caves zone layouts 14906 | -5/Hub_04(d) | Network Hub disabled 14916 | -5/Hub_04(d) | Spotted Lightning 14924 | -5/Hub_04(d) | Spotted Lightning 14944 | -5/Hub_04(d) | Spotted Lightning 14952 | -5/Hub_04(d) | Network Hub disabled 14955 | -5/Hub_04(d) | Spotted Lightning 14956 | -5/Hub_04(d) | Core integrity fell below 20% 14956 | -5/Hub_04(d) | Entered Factory 14956 | -4/Factory | Evolved 2 slots: Power x1, Propulsion x1 14957 | -4/Factory | Identified exit to Research 14987 | -4/Factory | Incoming investigation squad redirected 15011 | -4/Factory | Identified exit to Upper Caves 15030 | -4/Factory | Loaded intel: 8 recycling unit locations 15048 | -4/Factory | Spotted B-86 Titan 15050 | -4/Factory | Identified exit to Garrison 15050 | -4/Factory | Entered Garrison 15106 | -4/Garrison | Spotted B-86 Titan 15129 | -4/Garrison | Discovered new exit (range 12) 15175 | -4/Garrison | Identified exit to Factory 15178 | -4/Garrison | Triggered checkpoint 15214 | -4/Garrison | Entered Factory 15237 | -4/Factory | Lost 10 parts (6n4u) 15261 | -4/Factory | Core integrity fell below 50% 15281 | -4/Factory | Core integrity fell below 20% 15289 | -4/Factory | Destroyed by S-27 Virus with Autogun Last Messages --------------- 15274_ Slug penetrates Door. 15276_ Slug penetrates Wall. 15276_ Acquired Imp. Focal Shield. 15279_ Acquired Imp. Fusion Compressor. 15280_ Slug penetrates Wall. 15283_ Penetrated by Slug. 15283_ Slug penetrates Wall. 15283_ Penetrated by Slug. 15284_ U-05 Engineer builds a Door. 15285_ Destroyed VTOL Module. 15285_ Power Maul follow-up attack on S-27 Virus. 15285_ S-27 Virus suffers critical hit (Smash). 15285_ Destroyed Autogun. 15285_ Destroyed VTOL Module. 15285_ S-27 Virus system corrupted by crushing effect. 15285_ S-27 Virus destroyed. 15286_ Slug penetrates Wall. 15288_ Hvy. Pick destroyed. Map ----- +----------------------------------------------------+ | ?????????????????# " " " " " #???# | | ?????????????????# " " " " " #???# | | ?????????????????# #???# """""" | | ?????????????????#######+########## """""" | | ????????????????????# """""" | | ????????????????????# ^ """""" | | ????????????????????# | | ????????????????????# | | ????????????????????# | | ????????????????????# ####################### | | ????????????????????# # #????????# | | ????????????????????# # " #????????# | | ????????????????????+ + #????????+ | | ????????????????????# % # #????????# | | ????????????????????# # #????????# | | ????????????????????# # ] #????????# | | ????????????????????# # #????????# | | ?????????#######+#### # #????????# | | ????????? " #????????? | | ???????? # #?????????? | | ???????? # #?????????? | | ???????? # #?????????? | | ???????? g g ##############?????????? | | ???????? #####+#####s#####????????????????????? | | ????????????# gs #????????????????????? | | ????????????# """" @ #????????????????????? | | ????????????????? """" % #????????????????????? | | ???????????????? """" #????????????????????? | | ????????????????? """" ** #????????????????????? | | ??????????????????"""" #????????????????????? | | ??????????????????"""" #????????????????????? | | ??????????????????"""" #????????????????????? | | ?????????????????? #????????????????????? | | ????????????????? #????????????????????? | | ?????????????????############????????????????????? | | ?????????????????????????????????????????????????? | | ?????????????????????????????????????????????????? | | ?????????????????????????????????????????????????? | | ?????????????????????????????????????????????????? | | ?????????????????????????????????????????????????? | | ?????????????????????????????????????????????????? | | ?????????????????????????????????????????????????? | | ?????????????????????????????????????????????????? | | ?????????????????????????????????????????????????? | | ?????????????????????????????????????????????????? | | ?????????????????????????????????????????????????? | | ?????????????????????????????????????????????????? | | ?????????????????????????????????????????????????? | | ?????????????????????????????????????????????????? | | ?????????????????????????????????????????????????? | +----------------------------------------------------+ Best States ------------- Heat Dissipation 43 Energy Generation 23 Energy Capacity 315 Matter Stores 300 Matter Capacity 300 Sight Range 22 Robot Scan Range 16 Terrain Scan Range 20 Terrain Scan Density 1210 ECM Strength 1 Additional Mass Support 16 Armor Coverage 225 Propulsion Shielding 66 Evasion (%) 65 Recoil Reduction 2 Offensive Hacking 28 Defensive Hacking 23 Authchip Count 2 Item Schematics ----------------- Imp. Propulsion Shielding | -6/Factory | Scanalyzed System Restoration Module | -6/Factory | Scanalyzed Exp. Signal Interpreter | -6/Factory | Scanalyzed Hvy. Plasma Cannon | -6/Factory | Extracted Imp. Titanium Leg | -6/Factory | Extracted Lyr. Light Armor Plating | -6/Factory | Extracted Com. Matter Pod | -6/Factory | Extracted Energy Well | -6/Factory | Extracted Cesium-ion Thruster | -6/Factory | Hacked Combat Drone Bay | -6/Data Miner | Free Lgt. Regenerative Plating | -6/Data Miner | Free Enh. Flexi-carbon Leg | -6/Data Miner | Free Imp. Matter Compressor | -6/Data Miner | Free Hvy. Proton Cannon | -6/Data Miner | Free Imp. Gyrokinetic Inverter | -6/Data Miner | Free Adv. Hardlight Generator | -6/Data Miner | Free Adv. Datajack | -6/Data Miner | Free Mic. Antimatter Reactor | -6/Data Miner | Free Enh. Gauss Cannon | -6/Data Miner | Free Hvy. Linear Accelerator | -6/Data Miner | Free Adv. System Restoration Module | -5/Factory | Scanalyzed Adv. Hacking Suite | -5/Factory | Hacked Quantum Capacitor | -5/Factory | Downloaded Exp. Propulsion Shielding | -5/Factory | Hacked Cld. Cesium-ion Thruster | -5/Factory | Hacked Cld. Nuclear Pulse Thruster | -5/Factory | Scanalyzed Stasis Canceller | -5/Extension | Hacked Imp. System Guard | -5/Hub_04(d) | Hacked Imp. Transmission Jammer | -5/Hub_04(d) | Hacked Robot Schematics ------------------ X-62 Marksman | -6/Data Miner | Free L-41 Fighter | -6/Data Miner | Free B-60 Warrior | -6/Data Miner | Free S-27 Virus | -6/Data Miner | Free R-10 Processor | -6/Data Miner | Free G-67 Veteran | -6/Data Miner | Free O-32 Director | -6/Data Miner | Free Fabricated ------------ Cesium-ion Thruster | x2 | -5/Factory | Authchip Adv. Hacking Suite | x1 | -5/Factory | Authchip Adv. System Restoration Module | x2 | -5/Factory | Authchip Repaired ---------- Greatsword | 53% | -6/Factory Flight Unit | 5% | -6/Factory Exp. Signal Interpreter | 99% | -6/Factory | Broken Greatsword | 15% | -6/Factory Greatsword | 50% | -6/Factory Lgt. Fission Core | 13% | -5/Factory Greatsword | 26% | -5/Factory Alien Tech Used ----------------- None Achievements -------------- None Challenges ------------ None Game ------ Seed MatterTimingLaser Manual? 0 Play Time 03:34:01 Cumulative 455.0 hours Start 2025.08.11 @ 17:30:17 End 2025.08.12 @ 10:58:33 Sessions 5 Manual Loads 0 Difficulty Rogue Special Mode None Game No. 200 Rogue 200 Adventurer 0 Explorer 0 Win Type - Total 30 Types 12/2/5/2/5/1/0/2/0/1 Lore% 94 Gallery% 85 Achievement% 79 Wizard Run 0 Options --------- Layout 1 ASCII 0 Keyboard 0 Movement Numpad Keybinds 0 Fullscreen 1 Font 24/Smallcaps Map View 50x35 Zoom Use 0% Tactical HUD 1 Map Filters NONE Filters NONE Steam 1 RUN: 1e77c26c-627d-40bd-a04c-4c54de53ba8f